bitfinex/quotes_BTCUSD_20240828
["timestamp","ask_amount","ask_price","bid_price","bid_amount"]
[1724848562091,1.25810081,60263.0,60262.0,0.84583616]
[1724848562310,1.0574715,60263.0,60262.0,0.84583616]
[1724848562518,1.0574715,60263.0,60262.0,1.17772016]
[1724848563137,1.0574715,60263.0,60262.0,0.18206816]
[1724848563138,1.25810081,60263.0,60262.0,0.18206816]
[1724848563556,1.25710081,60263.0,60262.0,0.51395216]
[1724848563998,1.25710081,60263.0,60262.0,0.18206816]
[1724848563999,1.25810081,60263.0,60262.0,0.18206816]
[1724848564500,1.25710081,60263.0,60262.0,0.01612616]
[1724848564699,1.25710081,60263.0,60262.0,0.18206816]
[1724848564909,1.25810081,60263.0,60262.0,0.51523811]
[1724848565134,1.25810081,60263.0,60262.0,0.51123811]
[1724848565339,1.25710081,60263.0,60262.0,0.51123811]
[1724848567018,1.0574715,60263.0,60262.0,0.84312211]
[1724848567433,1.0564715,60263.0,60262.0,0.84312211]
[1724848567652,1.0564715,60263.0,60262.0,1.25520611]
[1724848567863,1.0594715,60263.0,60262.0,1.25520611]
[1724848568498,1.0604715,60263.0,60262.0,1.32120611]
[1724848570232,1.0574715,60263.0,60262.0,1.32120611]
[1724848570799,1.0574715,60263.0,60262.0,0.65743811]
[1724848570800,1.0594715,60263.0,60262.0,0.65743811]
[1724848570997,1.0594715,60263.0,60262.0,0.92332211]
[1724848571199,1.0594715,60263.0,60262.0,0.98932211]
[1724848571380,1.0584715,60263.0,60262.0,0.98932211]
[1724848571582,1.0594715,60263.0,60262.0,0.98932211]
[1724848572021,1.0584715,60263.0,60262.0,0.98932211]
[1724848572219,1.0584715,60263.0,60262.0,0.99132211]
[1724848572575,1.0584715,60263.0,60262.0,0.98932211]
[1724848573050,1.0564715,60263.0,60262.0,0.99232211]
[1724848573453,1.0564715,60263.0,60262.0,0.99332211]
[1724848573661,1.0564715,60263.0,60262.0,0.92732211]
[1724848573866,1.0564715,60263.0,60262.0,0.92632211]
[1724848574216,1.0564715,60263.0,60262.0,0.92832211]
[1724848576006,1.0564715,60263.0,60262.0,0.51713901]
[1724848576407,1.0564715,60263.0,60262.0,0.84902301]
[1724848576621,1.0564715,60263.0,60262.0,0.51713901]
[1724848576843,1.0564715,60263.0,60262.0,0.84902301]
[1724848577114,1.0564715,60263.0,60262.0,0.51713901]
[1724848578350,1.0564715,60263.0,60262.0,0.84902301]
[1724848579604,1.0564715,60263.0,60262.0,0.51713901]
[1724848580027,1.0564715,60263.0,60262.0,0.84902301]
[1724848582943,1.0564715,60263.0,60262.0,1.18090701]
[1724848583156,1.0564715,60263.0,60262.0,0.84902301]
[1724848583402,1.0564715,60263.0,60262.0,1.18090701]
[1724848584391,1.0564715,60263.0,60262.0,0.84902301]
[1724848585327,1.0564715,60263.0,60262.0,1.18090701]
[1724848585561,1.0564715,60263.0,60262.0,0.84902301]
[1724848585797,1.0564715,60263.0,60262.0,1.18090701]
[1724848593688,1.0564715,60263.0,60262.0,0.18525501]
[1724848593689,1.1961715,60263.0,60262.0,0.18525501]
[1724848593895,0.834737,60260.0,60259.0,0.0009009]
[1724848594125,0.834737,60260.0,60248.0,0.165979]
[1724848594126,0.0761,60252.0,60248.0,0.165979]
[1724848594352,0.20062931,60249.0,60247.0,0.331965]
[1724848594562,0.20062931,60249.0,60248.0,0.497941]
[1724848595255,0.20062931,60249.0,60248.0,0.829902]
[1724848595749,0.20062931,60255.0,60254.0,0.165964]
[1724848595987,0.331886,60262.0,60248.0,0.0805]
[1724848595988,0.34032931,60261.0,60260.0,0.164947]
[1724848596469,0.34032931,60261.0,60258.0,0.331903]
[1724848596939,0.34032931,60261.0,60259.0,0.16595]
[1724848597105,0.34032931,60261.0,60260.0,0.165947]
[1724848597262,0.34032931,60261.0,60260.0,0.163947]
[1724848598088,0.34832931,60261.0,60260.0,0.161947]
[1724848598467,0.34032931,60261.0,60260.0,0.161947]
[1724848598665,0.34232931,60261.0,60260.0,0.001]
[1724848598866,0.35032931,60261.0,60260.0,0.167947]
[1724848599447,0.55706236,60261.0,60260.0,0.002]
[1724848599647,0.55706236,60261.0,60248.0,0.331956]
[1724848599648,0.331908,60258.0,60249.0,0.165976]
[1724848599883,0.1418,60252.0,60250.0,0.165974]
[1724848600083,0.1418,60252.0,60250.0,0.00910392]
[1724848600214,0.1418,60252.0,60250.0,0.17507692]
[1724848600421,0.20062931,60253.0,60243.0,0.0009009]
[1724848600422,0.005,60249.0,60243.0,0.0009009]
[1724848600627,0.50842031,60244.0,60243.0,0.0009009]
[1724848600852,0.50842031,60244.0,60232.0,0.332049]
[1724848600853,0.50842031,60244.0,60224.0,0.0009009]
[1724848600854,0.16601,60237.0,60224.0,0.0009009]
[1724848601061,0.16601,60237.0,60229.0,0.332062]
[1724848601062,0.44473931,60237.0,60229.0,0.332062]
[1724848601262,0.44473931,60237.0,60226.0,0.33208]
[1724848601263,0.77676031,60237.0,60228.0,0.166034]
[1724848601464,0.77676031,60237.0,60226.0,0.33208]
[1724848601465,0.84046031,60237.0,60226.0,0.33208]
[1724848601665,1.17748131,60237.0,60226.0,0.16604]
[1724848601864,1.17748131,60237.0,60227.0,0.166037]
[1724848602062,0.56767913,60237.0,60226.0,0.33208]
[1724848602272,0.34342931,60237.0,60233.0,0.166021]
[1724848602482,0.34242931,60237.0,60233.0,0.166021]
[1724848602687,0.34342931,60237.0,60236.0,0.0019009]
[1724848602931,0.20162931,60237.0,60236.0,0.1679139]
[1724848603136,0.20062931,60237.0,60236.0,0.1669139]
[1724848603365,0.0816,60242.0,60241.0,0.165999]
[1724848603590,0.20062931,60243.0,60241.0,0.331999]
[1724848603808,0.20062931,60243.0,60238.0,0.332013]
[1724848603809,0.20062931,60243.0,60240.0,0.166001]
[1724848604039,0.20062931,60243.0,60242.0,0.01001784]
[1724848604246,0.20062931,60243.0,60239.0,0.166004]
[1724848604453,0.20062931,60243.0,60240.0,0.15301884]
[1724848604634,0.20062931,60243.0,60240.0,0.16136704]
[1724848605084,0.20062931,60243.0,60241.0,0.165997]
[1724848605303,0.21362931,60243.0,60242.0,0.001]
[1724848605678,0.21362931,60243.0,60242.0,0.0093482]
[1724848606018,0.20762931,60243.0,60242.0,0.001]
[1724848606419,0.21362931,60243.0,60242.0,0.001]
[1724848606639,0.20662931,60243.0,60242.0,0.165997]
[1724848606845,0.21062931,60243.0,60242.0,0.0083482]
[1724848607271,0.21062931,60243.0,60242.0,0.1743452]
[1724848607539,0.20662931,60243.0,60242.0,0.1743452]
[1724848607744,0.20462931,60243.0,60242.0,0.0083482]
[1724848607946,0.20662931,60243.0,60242.0,0.0083482]
[1724848608146,0.20662931,60243.0,60241.0,0.165999]
[1724848608351,0.20662931,60243.0,60242.0,0.0083482]
[1724848608785,0.20662931,60243.0,60242.0,0.1743452]
[1724848609603,0.20462931,60243.0,60242.0,0.1743452]
[1724848609808,0.20062931,60243.0,60242.0,0.1743452]
[1724848610029,0.346957,60249.0,60242.0,0.1743452]
[1724848610030,0.26642931,60250.0,60249.0,0.165977]
[1724848610237,0.0180696,60256.0,60252.0,0.165968]
[1724848610238,0.0771,60254.0,60252.0,0.165968]
[1724848610640,0.0771,60254.0,60243.0,0.0652]
[1724848610641,0.0771,60254.0,60253.0,0.165966]
[1724848610858,0.0771,60254.0,60253.0,0.17428058]
[1724848611285,0.0771,60254.0,60253.0,0.00831458]
[1724848611486,0.0771,60254.0,60253.0,0.00631458]
[1724848611684,0.0771,60254.0,60253.0,0.00798124]
[1724848612041,0.0791,60254.0,60253.0,0.17494724]
[1724848613001,0.0791,60254.0,60253.0,0.00898124]
[1724848613181,0.73933133,60254.0,60253.0,0.00898124]
[1724848613382,0.97542,60254.0,60253.0,0.00898124]
[1724848613617,0.97542,60254.0,60253.0,0.001]
[1724848613993,0.311564,60254.0,60253.0,0.001]
[1724848614173,0.306564,60254.0,60253.0,0.001]
[1724848614671,0.306564,60254.0,60253.0,0.002]
[1724848615365,0.76709523,60254.0,60253.0,0.002]
[1724848615578,0.306564,60254.0,60253.0,0.002]
[1724848615776,0.1406,60254.0,60253.0,0.002]
[1724848616190,0.1406,60254.0,60253.0,0.00973051]
[1724848617204,0.1406,60254.0,60253.0,0.002]
[1724848618393,0.306564,60254.0,60253.0,0.002]
[1724848619680,0.002,60254.0,60253.0,0.499899]
[1724848619893,0.002,60254.0,60253.0,0.50762951]
[1724848620598,0.002,60254.0,60253.0,0.83956251]
[1724848620839,0.002,60254.0,60253.0,0.91886251]
[1724848621622,0.002,60254.0,60253.0,0.50762951]
[1724848622316,0.20062931,60256.0,60253.0,0.50562951]
[1724848622521,0.20062931,60256.0,60254.0,0.165963]
[1724848622694,0.0766,60255.0,60254.0,0.165963]
[1724848624232,0.20062931,60256.0,60255.0,0.165961]
[1724848624434,0.36658931,60256.0,60253.0,0.001]
[1724848624645,0.165962,60255.0,60253.0,0.001]
[1724848624848,0.165975,60250.0,60246.0,0.165985]
[1724848625047,0.20062931,60247.0,60246.0,0.165986]
[1724848625298,0.20062931,60247.0,60245.0,0.165988]
[1724848625434,0.20062931,60247.0,60246.0,0.165986]
[1724848625637,0.20062931,60247.0,60242.0,0.0009009]
[1724848625836,0.1375,60246.0,60242.0,0.0009009]
[1724848626436,0.28708184,60247.0,60242.0,0.0009009]
[1724848626437,0.649182,60243.0,60242.0,0.0009009]
[1724848626666,0.98117,60243.0,60242.0,0.0009009]
[1724848626875,0.98117,60243.0,60242.0,0.0039009]
[1724848627078,1.12229518,60243.0,60242.0,0.0039009]
[1724848627481,1.12029518,60243.0,60242.0,0.0039009]
[1724848627690,1.12229518,60243.0,60242.0,0.0039009]
[1724848628148,1.12229518,60243.0,60242.0,0.0009009]
[1724848628363,0.317194,60243.0,60242.0,0.0009009]
[1724848628566,0.649182,60243.0,60242.0,0.0009009]
[1724848628772,0.649182,60243.0,60242.0,0.0019009]
[1724848628773,0.98217,60243.0,60242.0,0.0019009]
[1724848628981,0.98217,60243.0,60242.0,0.0029009]
[1724848629186,0.649182,60243.0,60242.0,0.0019009]
[1724848629457,0.650182,60243.0,60242.0,0.0019009]
[1724848629613,0.651182,60243.0,60242.0,0.0029009]
[1724848630240,0.319194,60243.0,60242.0,0.0029009]
[1724848630490,0.172994,60243.0,60242.0,0.0029009]
[1724848630874,0.172994,60243.0,60242.0,0.01081572]
[1724848631089,0.172994,60243.0,60242.0,0.01081375]
[1724848631260,0.504982,60243.0,60242.0,0.01081375]
[1724848632111,0.504982,60243.0,60242.0,0.0029009]
[1724848632555,0.94079334,60243.0,60242.0,0.0029009]
[1724848633222,0.60880534,60243.0,60242.0,0.0029009]
[1724848634523,0.321899,60241.0,60240.0,0.000902]
[1724848634751,1.18652631,60241.0,60240.0,0.000902]
[1724848634966,1.20952631,60241.0,60240.0,0.000902]
[1724848635443,1.20932656,60241.0,60240.0,0.000902]
[1724848635654,1.20932656,60241.0,60240.0,0.001902]
[1724848636083,1.20732656,60241.0,60240.0,0.001902]
[1724848636294,1.20832656,60241.0,60240.0,0.002902]
[1724848636922,1.21032656,60241.0,60240.0,0.002902]
[1724848637117,1.70832656,60241.0,60240.0,0.002902]
[1724848638163,1.73435201,60241.0,60240.0,0.002902]
[1724848638368,1.73235201,60241.0,60240.0,0.002902]
[1724848639178,1.75437326,60241.0,60240.0,0.002902]
[1724848639592,1.73435201,60241.0,60240.0,0.002902]
[1724848641212,1.73235201,60241.0,60240.0,0.002902]
[1724848644248,0.83685225,60237.0,60236.0,0.0009009]
[1724848644461,0.83685225,60237.0,60224.0,0.1935009]
[1724848644462,0.70355256,60226.0,60224.0,0.1935009]
[1724848644685,1.18113456,60226.0,60224.0,0.1935009]
[1724848644899,1.67913456,60226.0,60224.0,0.1935009]
[1724848645648,1.01297056,60226.0,60224.0,0.1935009]
[1724848645876,1.34605256,60226.0,60225.0,0.0019009]
[1724848646312,1.67713456,60226.0,60225.0,0.0009009]
[1724848646531,1.67913456,60226.0,60225.0,0.0009009]
[1724848646731,1.67713456,60226.0,60225.0,0.0009009]
[1724848647333,1.69113456,60226.0,60225.0,0.0009009]
[1724848647664,1.68813456,60226.0,60225.0,0.0019009]
[1724848647868,1.68913456,60226.0,60225.0,0.0009009]
[1724848648087,1.8576862,60226.0,60225.0,0.0009009]
[1724848648273,1.8676862,60226.0,60225.0,0.0019009]
[1724848648495,1.88371713,60226.0,60225.0,0.0019009]
[1724848648726,1.88971713,60226.0,60225.0,0.0019009]
[1724848648950,1.89171713,60226.0,60225.0,0.0019009]
[1724848649169,1.88971713,60226.0,60225.0,0.0019009]
[1724848650947,2.22379913,60226.0,60225.0,0.0019009]
[1724848651647,0.83502025,60225.0,60224.0,0.1454018]
[1724848651854,1.33302025,60225.0,60224.0,0.1454018]
[1724848653113,1.50157189,60225.0,60224.0,0.1454018]
[1724848653416,1.50157189,60225.0,60220.0,0.0009009]
[1724848653417,0.83507525,60221.0,60220.0,0.0009009]
[1724848653615,0.166081,60212.0,60210.0,0.1797]
[1724848653747,0.498,60211.0,60210.0,0.1797]
[1724848654965,0.502,60211.0,60210.0,0.345785]
[1724848655986,0.499,60211.0,60210.0,0.345785]
[1724848657294,0.499,60211.0,60210.0,1.010125]
[1724848657505,0.499,60211.0,60210.0,1.402895]
[1724848658318,0.498,60211.0,60210.0,1.402895]
[1724848658514,0.498,60211.0,60210.0,1.071725]
[1724848659174,0.5240339,60211.0,60210.0,1.071725]
[1724848659410,0.5240339,60211.0,60210.0,1.40409475]
[1724848660075,0.498,60211.0,60210.0,1.40409475]
[1724848660966,0.499,60211.0,60210.0,1.40409475]
[1724848661621,0.5,60211.0,60210.0,1.41009475]
[1724848661831,0.5,60211.0,60210.0,1.74226475]
[1724848662042,0.5,60211.0,60210.0,1.74916675]
[1724848662043,0.501,60211.0,60210.0,1.74916675]
[1724848662215,0.003,60211.0,60210.0,1.74916675]
[1724848662420,0.003,60211.0,60210.0,1.76695218]
[1724848663266,0.003,60211.0,60210.0,1.76895218]
[1724848663505,0.003,60211.0,60210.0,1.76695218]
[1724848663696,0.003,60211.0,60210.0,1.74916675]
[1724848664137,0.003,60211.0,60210.0,2.09912258]
[1724848664348,0.003,60211.0,60210.0,1.76695258]
[1724848664556,0.003,60211.0,60210.0,1.86695258]
[1724848664766,0.003,60211.0,60210.0,2.19912258]
[1724848666114,0.003,60211.0,60210.0,2.53129258]
[1724848666328,0.50540786,60237.0,60210.0,2.53129258]
[1724848666329,0.50540786,60237.0,60236.0,1.237494]
[1724848666763,0.06272,60243.0,60242.0,0.829985]
[1724848666987,0.06272,60243.0,60242.0,1.63117275]
[1724848666988,0.00082,60243.0,60242.0,1.63117275]
[1724848667416,0.00082,60243.0,60242.0,1.63317275]
[1724848667621,0.00082,60243.0,60242.0,1.63593022]
[1724848668275,0.00882,60243.0,60242.0,1.97092422]
[1724848668520,0.00082,60243.0,60242.0,2.10192422]
[1724848668755,0.00082,60243.0,60242.0,2.09692422]
[1724848668959,0.00082,60243.0,60242.0,2.11192422]
[1724848668960,0.00182,60243.0,60242.0,2.11192422]
[1724848669186,0.00082,60243.0,60242.0,2.09792422]
[1724848669619,0.00082,60243.0,60242.0,2.79819051]
[1724848669823,0.00082,60243.0,60242.0,2.90931719]
[1724848670241,0.00082,60243.0,60242.0,2.57732319]
[1724848670466,0.00182,60243.0,60242.0,1.82967993]
[1724848670683,0.00182,60243.0,60242.0,1.74317275]
[1724848670890,0.00082,60243.0,60242.0,1.71817275]
[1724848671112,0.00082,60243.0,60242.0,1.73017275]
[1724848671113,0.00182,60243.0,60242.0,1.73017275]
[1724848671313,0.00182,60243.0,60242.0,1.72017275]
[1724848671527,0.00082,60243.0,60242.0,1.73417275]
[1724848671730,0.00082,60243.0,60242.0,1.73217275]
[1724848672161,0.00082,60243.0,60242.0,1.71817275]
[1724848672387,0.00182,60243.0,60242.0,1.74417275]
[1724848673212,0.00182,60243.0,60242.0,1.236579]
[1724848673418,0.00182,60243.0,60242.0,0.904585]
[1724848673637,0.00082,60243.0,60242.0,0.498991]
[1724848673839,0.00082,60243.0,60242.0,0.830985]
[1724848674308,0.00182,60243.0,60242.0,0.841985]
[1724848674937,0.00082,60243.0,60242.0,0.830985]
[1724848675153,0.00082,60243.0,60242.0,0.816985]
[1724848675369,0.00082,60243.0,60242.0,0.831985]
[1724848675590,0.00082,60243.0,60242.0,0.015]
[1724848675591,0.03209518,60243.0,60242.0,0.015]
[1724848675821,0.03209518,60243.0,60242.0,0.001]
[1724848676083,0.03209518,60243.0,60242.0,0.166997]
[1724848676084,0.00562025,60243.0,60242.0,0.166997]
[1724848676302,0.00562025,60243.0,60242.0,0.168997]
[1724848676735,0.00562025,60243.0,60242.0,0.166997]
[1724848676934,0.00562025,60243.0,60242.0,0.165997]
[1724848677567,0.01162025,60243.0,60242.0,0.166997]
[1724848677785,0.00562025,60243.0,60242.0,0.165997]
[1724848677995,0.03164164,60243.0,60242.0,0.165997]
[1724848678206,0.03764164,60243.0,60242.0,0.166997]
[1724848678893,0.32629114,60243.0,60242.0,0.001]
[1724848679097,0.16029714,60243.0,60242.0,0.001]
[1724848679313,0.11354164,60243.0,60242.0,0.001]
[1724848681920,0.71152364,60243.0,60242.0,0.001]
[1724848682134,1.05351164,60243.0,60242.0,0.001]
[1724848682547,0.72152364,60243.0,60242.0,0.001]
[1724848684074,0.21354164,60243.0,60242.0,0.001]
[1724848684284,0.21354164,60243.0,60242.0,0.830985]
[1724848684285,0.03284139,60243.0,60242.0,0.830985]
[1724848684503,0.504802,60243.0,60242.0,0.001]
[1724848684720,0.588002,60243.0,60242.0,0.001]
[1724848685164,0.09002,60243.0,60242.0,0.001]
[1724848685374,0.09482025,60243.0,60242.0,0.001]
[1724848685578,0.19482025,60243.0,60242.0,0.001902]
[1724848685783,0.23536521,60243.0,60242.0,0.001902]
[1724848686423,0.23536521,60243.0,60242.0,0.000902]
[1724848686634,0.22936521,60243.0,60242.0,0.000902]
[1724848686828,0.23536521,60243.0,60242.0,0.001902]
[1724848687941,0.19482025,60243.0,60242.0,0.001902]
[1724848688290,0.11162025,60243.0,60242.0,0.167899]
[1724848689048,0.11162025,60243.0,60242.0,0.001902]
[1724848689607,0.10562025,60243.0,60242.0,0.000902]
[1724848689837,0.01062025,60243.0,60242.0,0.000902]
[1724848690133,0.11062025,60243.0,60242.0,0.000902]
[1724848691116,0.01062025,60243.0,60242.0,0.498893]
[1724848691374,0.00582,60243.0,60242.0,0.830887]
[1724848691546,0.00582,60243.0,60242.0,1.241681]
[1724848692166,0.00582,60243.0,60242.0,1.57387475]
[1724848692568,0.00082,60243.0,60242.0,1.57387475]
[1724848692971,0.00182,60243.0,60242.0,1.91186875]
[1724848693328,0.00082,60243.0,60242.0,1.96926875]
[1724848693648,0.00182,60243.0,60242.0,1.65227475]
[1724848697041,0.02783759,60243.0,60242.0,1.65227475]
[1724848701670,0.02783759,60243.0,60242.0,1.256681]
[1724848701882,0.02783759,60243.0,60242.0,1.177881]
[1724848702720,0.00182,60243.0,60242.0,1.177881]
[1724848704201,0.00182,60243.0,60242.0,1.59077475]
[1724848704431,0.00182,60243.0,60242.0,1.65687475]
[1724848705057,0.00182,60243.0,60242.0,1.98886875]
[1724848705245,0.00182,60243.0,60242.0,1.99086875]
[1724848705628,0.00082,60255.0,60254.0,1.97260375]
[1724848706366,0.00082,60255.0,60254.0,2.40653175]
[1724848706806,0.00082,60255.0,60254.0,2.45584621]
[1724848707011,0.00782,60255.0,60254.0,2.45684621]
[1724848707219,0.00782,60255.0,60254.0,2.40453175]
[1724848707220,0.00082,60255.0,60254.0,2.40453175]
[1724848707440,1.0564715,60263.0,60262.0,1.96956175]
[1724848708729,1.0564715,60263.0,60262.0,1.97156175]
[1724848709265,1.0564715,60263.0,60262.0,1.96956175]
[1724848710009,1.0574715,60263.0,60262.0,1.97756175]
[1724848710684,1.0574715,60263.0,60262.0,1.98656175]
[1724848711060,1.0574715,60263.0,60262.0,1.97856175]
[1724848711361,1.0564715,60263.0,60262.0,1.97856175]
[1724848711519,1.0574715,60263.0,60262.0,1.99256175]
[1724848711970,1.0574715,60263.0,60262.0,1.98356175]
[1724848712199,1.0574715,60263.0,60262.0,1.99756175]
[1724848714954,1.0574715,60263.0,60262.0,2.53007506]
[1724848715191,1.0574715,60263.0,60262.0,2.65507506]
[1724848715433,1.0574715,60263.0,60262.0,2.42944575]
[1724848715655,1.0574715,60263.0,60262.0,2.09756175]
[1724848715895,1.0574715,60263.0,60262.0,2.16407475]
[1724848716152,1.0574715,60263.0,60262.0,1.52167775]
[1724848716400,1.0574715,60263.0,60262.0,1.18979375]
[1724848716658,1.0574715,60263.0,60262.0,0.85771]
[1724848716896,1.0574715,60263.0,60262.0,0.525826]
[1724848717367,1.0574715,60263.0,60262.0,0.511826]
[1724848717368,1.1203715,60263.0,60262.0,0.511826]
[1724848717848,1.1203715,60263.0,60262.0,0.83871]
[1724848717849,1.1193715,60263.0,60262.0,0.83871]
[1724848718068,1.1193715,60263.0,60262.0,0.83971]
[1724848718499,1.1193715,60263.0,60262.0,0.506826]
[1724848718738,1.1193715,60263.0,60262.0,0.83871]
[1724848718949,1.1193715,60263.0,60262.0,0.506826]
[1724848719207,1.1193715,60263.0,60262.0,0.497826]
[1724848719423,1.1203715,60263.0,60262.0,0.83071]
[1724848719665,1.1203715,60263.0,60262.0,0.498826]
[1724848719890,1.1203715,60263.0,60262.0,1.161594]
[1724848720140,1.0564715,60263.0,60262.0,0.82971]
[1724848720360,1.0574715,60263.0,60262.0,0.82971]
[1724848721082,1.08448397,60263.0,60262.0,0.83071]
[1724848721303,1.08448397,60263.0,60262.0,1.16279375]
[1724848721304,1.08248397,60263.0,60262.0,1.16279375]
[1724848721642,1.0564715,60263.0,60262.0,1.16379375]
[1724848722222,1.0564715,60263.0,60262.0,1.16279375]
[1724848722685,1.0564715,60263.0,60262.0,1.16579375]
[1724848722887,19.6404715,60263.0,60262.0,1.16479375]
[1724848723089,19.6404715,60263.0,60262.0,1.16179375]
[1724848723327,19.6404715,60263.0,60262.0,1.16379375]
[1724848723438,19.6404715,60263.0,60262.0,1.16779375]
[1724848723640,19.7199715,60263.0,60262.0,0.83571]
[1724848725534,19.6404715,60263.0,60262.0,0.83571]
[1724848725943,19.66648355,60263.0,60262.0,0.83571]
[1724848726763,19.66648355,60263.0,60262.0,1.167594]
[1724848727286,19.66648355,60263.0,60262.0,0.83571]
[1724848727399,19.66648355,60263.0,60262.0,0.83590975]
[1724848727609,19.66648355,60263.0,60262.0,1.24829375]
[1724848730022,19.6404715,60263.0,60262.0,1.24829375]
[1724848730650,19.6404715,60263.0,60262.0,1.16779375]
[1724848730865,19.7185715,60263.0,60262.0,0.83571]
[1724848731078,19.7185715,60263.0,60262.0,0.503826]
[1724848731079,19.7822715,60263.0,60262.0,0.503826]
[1724848731703,19.80828419,60263.0,60262.0,0.503826]
[1724848731933,19.80828419,60263.0,60262.0,0.006]
[1724848732145,19.80828419,60263.0,60262.0,0.171942]
[1724848732347,19.80828419,60263.0,60262.0,0.503826]
[1724848732981,19.80828419,60263.0,60262.0,0.497826]
[1724848733402,19.81028419,60263.0,60262.0,0.165942]
[1724848733610,19.97622419,60263.0,60259.0,0.165948]
[1724848733811,19.81028419,60263.0,60260.0,0.165945]
[1724848734053,19.80928419,60263.0,60260.0,0.165945]
[1724848734565,0.14250025,60262.0,60255.0,0.0009009]
[1724848734780,0.331896,60260.0,60255.0,0.0009009]
[1724848734991,0.0777,60258.0,60255.0,0.0009009]
[1724848735228,0.0777,60258.0,60257.0,0.497866]
[1724848735895,0.0777,60258.0,60257.0,0.165955]
[1724848736294,0.0777,60258.0,60257.0,0.497866]
[1724848736496,0.0777,60258.0,60257.0,0.500866]
[1724848736702,0.0777,60258.0,60257.0,0.501866]
[1724848737481,0.10371492,60258.0,60257.0,0.004]
[1724848737698,0.10371492,60258.0,60257.0,0.169955]
[1724848737903,0.1423,60256.0,60255.0,0.0009009]
[1724848738284,0.640175,60256.0,60255.0,0.0009009]
[1724848738768,1.40880925,60256.0,60255.0,0.0009009]
[1724848738977,1.40880925,60256.0,60234.0,0.47069975]
[1724848738978,0.229394,60243.0,60233.0,0.06674675]
[1724848739205,0.308294,60243.0,60235.0,0.332029]
[1724848739415,0.308294,60243.0,60238.0,0.166005]
[1724848739628,0.33431569,60243.0,60239.0,0.166004]
[1724848739835,0.16832169,60243.0,60240.0,0.166001]
[1724848740246,0.16932169,60243.0,60242.0,0.001902]
[1724848741564,0.09042169,60243.0,60242.0,0.167899]
[1724848741976,0.02702169,60243.0,60242.0,0.499893]
[1724848742180,0.02702169,60243.0,60242.0,0.831887]
[1724848742353,0.02702169,60243.0,60242.0,0.58139275]
[1724848742527,0.02602169,60243.0,60242.0,0.830887]
[1724848742729,0.02602169,60243.0,60242.0,0.498893]
[1724848742730,0.02702169,60243.0,60242.0,0.498893]
[1724848742906,0.02902169,60243.0,60242.0,0.498893]
[1724848743117,0.02902169,60243.0,60242.0,0.166899]
[1724848743318,0.02802169,60243.0,60242.0,0.000902]
[1724848743549,0.11809276,60243.0,60242.0,0.000902]
[1724848743751,1.03356301,60243.0,60242.0,0.000902]
[1724848743951,0.67420394,60243.0,60242.0,0.000902]
[1724848744147,0.67820394,60243.0,60242.0,0.000902]
[1724848744496,1.01019194,60243.0,60242.0,0.000902]
[1724848745471,1.44917994,60243.0,60242.0,0.000902]
[1724848745676,1.94847096,60243.0,60242.0,0.000902]
[1724848745892,1.94347096,60243.0,60242.0,0.000902]
[1724848746107,1.94547096,60243.0,60242.0,0.000902]
[1724848746317,1.97877556,60243.0,60242.0,0.000902]
[1724848746747,1.98177556,60243.0,60242.0,0.002902]
[1724848747213,2.00280335,60243.0,60242.0,0.000902]
[1724848747418,2.00480335,60243.0,60242.0,0.001902]
[1724848747641,2.17435499,60243.0,60242.0,0.002902]
[1724848748544,2.00580335,60243.0,60242.0,0.002902]
[1724848748749,1.64881535,60243.0,60242.0,0.002902]
[1724848749165,1.31682735,60243.0,60242.0,0.002902]
[1724848749367,1.31882735,60243.0,60242.0,0.002902]
[1724848749595,1.31782735,60243.0,60242.0,0.001902]
[1724848749798,1.32582735,60243.0,60242.0,0.001902]
[1724848749976,1.47375387,60243.0,60242.0,0.002902]
[1724848750181,1.44772608,60243.0,60242.0,0.002902]
[1724848750386,1.42372608,60243.0,60242.0,0.000902]
[1724848750578,1.43772608,60243.0,60242.0,0.001902]
[1724848750788,1.43772608,60243.0,60242.0,0.002902]
[1724848750789,1.44772608,60243.0,60242.0,0.002902]
[1724848750988,1.76571408,60243.0,60242.0,0.001902]
[1724848751201,1.77971408,60243.0,60242.0,0.002902]
[1724848752005,1.76771408,60243.0,60242.0,0.001902]
[1724848752231,1.63378756,60243.0,60242.0,0.001902]
[1724848752565,1.63078756,60243.0,60242.0,0.001902]
[1724848752883,1.64478756,60243.0,60242.0,0.002902]
[1724848753096,0.77018225,60243.0,60242.0,0.002902]
[1724848753305,0.751382,60243.0,60242.0,0.001902]
[1724848753500,0.751382,60243.0,60242.0,0.002902]
[1724848753501,0.79140921,60243.0,60242.0,0.002902]
[1724848753904,1.12339721,60243.0,60242.0,0.001902]
[1724848754236,1.15339915,60243.0,60242.0,0.001902]
[1724848754500,1.4761874,60243.0,60242.0,0.000902]
[1724848754709,1.8331754,60243.0,60242.0,0.000902]
[1724848755555,1.8401754,60243.0,60242.0,0.001902]
[1724848756010,2.1771634,60243.0,60242.0,0.001902]
[1724848756214,2.1631634,60243.0,60242.0,0.000902]
[1724848756433,2.1701634,60243.0,60242.0,0.002902]
[1724848756665,2.19980477,60243.0,60242.0,0.002902]
[1724848759303,2.53179277,60243.0,60242.0,0.002902]
[1724848759515,2.19980477,60243.0,60242.0,0.002902]
[1724848759968,2.53179277,60243.0,60242.0,0.002902]
[1724848760581,2.19980477,60243.0,60242.0,0.002902]
[1724848762075,2.36835641,60243.0,60242.0,0.002902]
[1724848762492,2.19980477,60243.0,60242.0,0.002902]
[1724848763740,2.53179277,60243.0,60242.0,0.002902]
[1724848763962,2.19980477,60243.0,60242.0,0.002902]
[1724848764382,2.53179277,60243.0,60242.0,0.002902]
[1724848764604,2.19980477,60243.0,60242.0,0.002902]
[1724848764875,2.19780477,60243.0,60242.0,0.002902]
[1724848765104,2.19980477,60243.0,60242.0,0.002902]
[1724848765317,2.53179277,60243.0,60242.0,0.002902]
[1724848765710,2.19980477,60243.0,60242.0,0.002902]
[1724848765919,2.53179277,60243.0,60242.0,0.002902]
[1724848766049,2.19980477,60243.0,60242.0,0.002902]
[1724848766893,2.34082018,60243.0,60242.0,0.002902]
[1724848767117,2.19980477,60243.0,60242.0,0.002902]
[1724848767867,2.53179277,60243.0,60242.0,0.002902]
[1724848768257,2.19980477,60243.0,60242.0,0.002902]
[1724848769154,2.53179277,60243.0,60242.0,0.002902]
[1724848770123,1.17206625,60227.0,60226.0,0.07]